Cogmind - Beta 11 @@@ ROGUE MODE // 2022.03.22 @ 06:50:10 // Halloween2019/Abominations Player: Shin Result: Destroyed by Minor Abomination with Small Laser Performance ------------- Evolutions (1) 500 Regions Visited (2) 400 Robots Destroyed (9) 45 Value Destroyed (407) 407 Prototype IDs (1) 20 Alien Tech Used (0) 0 Bonus (0) 0 TOTAL SCORE: 1372 Bonus ------- None Cogmind --------- Core Integrity 0/400 Matter 330/350 Energy 125/125 System Corruption 3% Temperature Cool (15) Movement Treading (160) Location -9/Materials Parts ------- > --- POWER (1) -------- Light Ion Engine > --- PROPULSION (2) --- Light Treads Light Treads > --- UTILITY (3) ------ Small Storage Unit Small Matter Pod Targeting Computer > --- WEAPON (3) ------- Flail > --- INVENTORY (8) ---- Wheel Compact Wheel Compact Wheel Improved Heat Sink Weight Redist. System Light Armor Plating Peak State ------------ > --- POWER ------------ Light Ion Engine > --- PROPULSION ------- Aluminum Leg Aluminum Leg > --- UTILITY ---------- Small Storage Unit Small Matter Pod Targeting Computer > --- WEAPON ----------- Medium Laser Advanced Beam Cannon Assault Rifle > --- INVENTORY -------- Light Ion Engine Light Treads Light Treads Wheel Compact Wheel Plasma Cutter Flail [Rating: 11] Favorites ----------- Power Light Ion Engine Engine Light Ion Engine Propulsion Aluminum Leg Treads Light Treads Leg Aluminum Leg Wheel Compact Wheel Utility Small Storage Unit Storage Small Storage Unit Processor Targeting Computer Weapon Assault Rifle Energy Gun Medium Laser Energy Cannon Advanced Beam Cannon Ballistic Gun Assault Rifle Special Weapon Plasma Cutter Impact Weapon Flail Build | -11 -10 -9 ------- Run | Scr Mat Mat Slots Evolved 2 | . . 2 Power . | . . . Propulsion . | . . . Utility 1 | . . 1 Weapon 1 | . . 1 Parts Attached 13 | . 1 12 Power 2 | . . 2 Engine 2 | . . 2 Core . | . . . Reactor . | . . . Propulsion 5 | . . 5 Treads 2 | . . 2 Leg . | . . . Wheel 3 | . . 3 Hover . | . . . Flight . | . . . Utility 2 | . 1 1 Device . | . . . Storage 1 | . . 1 Processor 1 | . 1 . Hackware . | . . . Protection . | . . . Artifact . | . . . Weapon 4 | . . 4 Energy Gun . | . . . Energy Cannon 1 | . . 1 Ballistic Gun 1 | . . 1 Ballistic Cannon . | . . . Launcher . | . . . Special Weapon 1 | . . 1 Impact Weapon 1 | . . 1 Slashing Weapon . | . . . Piercing Weapon . | . . . Special Melee Weapon . | . . . Unidentified Prototypes 1 | . . 1 Parts Lost 9 | . . 9 Power 2 | . . 2 Propulsion 2 | . . 2 Utility . | . . . Weapon 5 | . . 5 Highest Loss Streak 9 | . . 9 To Critical Strikes . | . . . Average Slot Usage (%) 87 | . 97 82 Engine 11 | . 14 9 Treads 1 | . . 1 Leg 16 | . 28 11 Wheel 3 | . . 5 Storage 19 | . 14 21 Processor 11 | . 11 11 Energy Gun 8 | . 14 5 Energy Cannon 1 | . . 1 Ballistic Gun 11 | . 14 9 Impact Weapon 3 | . . 5 Naked Turns . | . . . Heaviest Build 15 | 12 12 15 Greatest Support 32 | 20 20 32 Greatest Overweight (x) 4 | . . 4 Average Overweight (x) . | . . . Largest Inventory Capacity 8 | . 8 8 Average Capacity 8 | . 8 8 Most Carried 8 | . 8 8 Average Carried 6 | . 7 6 Final Capacity 8 | 8 8 8 Final Carried 8 | 6 8 6 Class Distribution -------------------- 70% | Mutant 29% | Gunner Dominant Class ---------------- Mutant | -10/Materials Mutant | -9/Materials Resources | -11 -10 -9 ----------- Run | Scr Mat Mat Matter Collected 399 | 199 47 153 Remotely . | . . . Salvage Created 425 | . 245 180 Parts 25 | . 16 9 Haulers Intercepted . | . . . Recyclers Shooed . | . . . Parts Field Recycled . | . . . Retrieved Matter . | . . . Parts Self-Destructed . | . . . Prevented . | . . . Kills | -11 -10 -9 ------- Run | Scr Mat Mat Combat Hostiles Destroyed 8 | . 5 3 Melee 1 | . . 1 Guns 5 | . 5 . Cannons 2 | . . 2 Classes Destroyed 3 | . 3 . Builder 1 | . 1 . Grunt 3 | . 3 . Abomination 5 | . 2 3 Best Kill Streak 4 | . 4 2 Combat Bots Only 3 | . 3 2 Max Kills in Single Turn 1 | . 1 1 Gunslinging . | . . . Exploded . | . . . Melee 1 | . . 1 Uniques/NPCs Destroyed . | . . . Combat | -11 -10 -9 -------- Run | Scr Mat Mat Damage Taken 1452 | . 87 1365 Core 423 | . 22 401 Absorbed by Shields . | . . . Core Remaining (%) 95 | 100 91 . Volleys Fired 32 | . 12 20 Largest 3 | . 2 3 Hottest 138 | . 70 138 Shots Fired 61 | . 22 39 Gun 49 | . 22 27 Cannon 12 | . . 12 Launcher . | . . . Special . | . . . Kinetic 28 | . 12 16 Thermal 33 | . 10 23 Explosive . | . . . Electromagnetic . | . . . Robot Hit Streak 11 | . 10 11 Robot Miss Streak 1 | . 1 1 Penetration Max . | . . . Secondary Targets . | . . . Shots Hit Robots 56 | . 18 38 Core Hits 17 | . 10 7 Critical Kills . | . . . Critical Parts Destroyed 1 | . . 1 Critical Strikes 3 | . . 3 Burn 2 | . . 2 Smash 1 | . . 1 Melee Attacks 13 | . . 13 Impact 13 | . . 13 Slashing . | . . . Piercing . | . . . Sneak Attacks 1 | . . 1 Combat Hostiles . | . . . Follow-up Attacks . | . . . Damage Inflicted 1145 | . 252 893 Guns 566 | . 252 314 Cannons 231 | . . 231 Explosions . | . . . Melee 348 | . . 348 Ramming . | . . . Kinetic 259 | . 115 144 Thermal 538 | . 137 401 Explosive . | . . . Electromagnetic . | . . . Impact 348 | . . 348 Slashing . | . . . Piercing . | . . . Highest Corruption 3 | . . 3 Average Corruption 1 | . . 1 Corruption Purged . | . . . Corruption Blocked . | . . . Effects 1 | . . 1 Message Errors 1 | . . 1 Overload Shots . | . . . Overflow Damage 44 | . . 44 Projectiles 7 | . . 7 Explosions . | . . . Melee 37 | . . 37 Knockbacks 1 | . . 1 Impact 1 | . . 1 Kinetic . | . . . Secondary . | . . . Self-Inflicted Damage . | . . . Shots . | . . . Rammed . | . . . Targets Rammed . | . . . Kicked . | . . . Crushed . | . . . Highest Temperature 579 | . 72 579 Average Temperature 179 | . 27 268 Received Heat Transfer 546 | . 48 498 Effects 6 | . . 6 Shutdowns 2 | . . 2 Energy Bleed 1 | . . 1 Damage (minor) 2 | . . 2 Damage (major) 1 | . . 1 Siege Activations . | . . . Robots Corrupted . | . . . Combat Hostiles . | . . . Parts Fried . | . . . Impact Corruptions 1 | . . 1 Robots Melted . | . . . Combat Hostiles . | . . . Parts Melted . | . . . Heat Transferred 446 | . 230 216 Parts Sabotaged . | . . . Parts Stolen . | . . . Parts Stripped . | . . . Power Chain Reactions . | . . . Missiles Intercepted . | . . . Alert | -11 -10 -9 ------- Run | Scr Mat Mat Peak Influence 100 | . 100 42 Initial 42 | . . 42 Average 26 | . 34 22 Maximum Alert Level . | . . . Low Security (%) 100 | . 100 100 Level 1 . | . . . Level 2 . | . . . Level 3 . | . . . Level 4 . | . . . Level 5 . | . . . High Security . | . . . Max Security . | . . . Squads Dispatched 10 | . 4 6 Investigation 4 | . 2 2 Extermination . | . . . Reinforcement 5 | . 2 3 Assault 1 | . . 1 Garrison . | . . . Intercept . | . . . Searches Triggered . | . . . Construction Impeded . | . . . Haulers Reinforced . | . . . Active Scanning Responses . | . . . Cargo Convoy Interrupts . | . . . Stealth | -11 -10 -9 --------- Run | Scr Mat Mat Distress Signals 5 | . 1 4 Communications Jammed . | . . . Distress Signals . | . . . Times Spotted 18 | . 9 9 Peak Tracking Total 6 | . 3 6 Tactical Retreats . | . . . Traps | -11 -10 -9 ------- Run | Scr Mat Mat Traps Triggered . | . . . Indirectly . | . . . Trap Hack Attempts . | . . . Triggered . | . . . Disarmed . | . . . Reprogrammed . | . . . Reused . | . . . Traps Extracted . | . . . Installed . | . . . Triggered . | . . . Machines | -11 -10 -9 ---------- Run | Scr Mat Mat Machines Disabled . | . . . Max in Single Turn . | . . . Machines Sabotaged . | . . . Garrisons Compromised . | . . . Overloaded Fab Kills . | . . . Hacking | -11 -10 -9 --------- Run | Scr Mat Mat Machines Accessed 1 | . 1 . Terminals 1 | . 1 . Fabricators . | . . . Repair Stations . | . . . Recycling Units . | . . . Scanalyzers . | . . . Garrison Access . | . . . Total Hacks 5 | . 5 . Successful 2 | . 2 . Failed 3 | . 3 . Catastrophic 1 | . 1 . Database Lockouts . | . . . Manual 3 | . 3 . Terminals 5 | . 5 . Fabricators . | . . . Repair Stations . | . . . Recycling Units . | . . . Scanalyzers . | . . . Garrison Access . | . . . Terminal Hacks 1 | . 1 . Level Access Points 1 | . 1 . Fabricator Hacks . | . . . Repair Station Hacks . | . . . Recycling Unit Hacks . | . . . Scanalyzer . | . . . Garrison Access Hacks . | . . . Unauthorized Hacks 1 | . 1 . Terminals 1 | . 1 . Botnet 1 | . 1 . Fabricators . | . . . Repair Stations . | . . . Recycling Units . | . . . Scanalyzers . | . . . Garrison Access . | . . . Data Cores Recovered . | . . . Used . | . . . Hacking Detections 1 | . 1 . Full Trace Events . | . . . Feedback Events . | . . . Feedback Blocked . | . . . Robot Schematics Acquired . | . . . Robots Built . | . . . Authchips . | . . . Time . | . . . Total Robot Build Rating . | . . . Part Schematics Acquired . | . . . Parts Built . | . . . Authchips . | . . . Time . | . . . Total Part Build Rating . | . . . Parts Repaired . | . . . Time . | . . . Parts Recycled . | . . . Recycled Matter . | . . . Retrieved Matter . | . . . Retrieved Components . | . . . Parts Scanalyzed . | . . . Part Schematics Acquired . | . . . Parts Damaged . | . . . Bothacking | -11 -10 -9 ------------ Run | Scr Mat Mat Used RIF Installer . | . . . Robots Hacked . | . . . Non-combat . | . . . Combat . | . . . Robot Hacks Applied . | . . . Relay Couplers Released . | . . . Fabnet Peak Effective % . | . . . Robots Rewired . | . . . Allies Hacked . | . . . Hacks Repelled . | . . . Allies | -11 -10 -9 -------- Run | Scr Mat Mat Total Allies . | . . . Largest Group . | . . . Highest-Rated Group . | . . . Highest-Rated Ally . | . . . Total Orders . | . . . Ally Attacks . | . . . Total Damage . | . . . Kills . | . . . Allies Corrupted . | . . . Allies Melted . | . . . Intel | -11 -10 -9 ------- Run | Scr Mat Mat Robot Analysis Total . | . . . Derelict Logs Recovered . | . . . Drone Launches . | . . . Drone Recoveries . | . . . Exploration | -11 -10 -9 ------------- Run | Scr Mat Mat Turns Passed 540 | . 174 366 Spaces Moved 301 | 1 114 186 Core 12 | . . 12 Treads . | . . . Legs 216 | 1 114 101 Wheels 73 | . . 73 Hover . | . . . Flight . | . . . Fastest Speed 100 | 120 120 100 Average Speed 117 | 120 120 115 Slowest Speed 250 | 120 120 250 Overloaded Moves . | . . . Propulsion Burnouts . | . . . Robots Hopped . | . . . Cave-ins Triggered . | . . . Exploration Rate (%) 14 | 1 26 17 Regions Visited 2 Branch Regions . Pre-discovered Areas . | . . . Known Exits Taken 1 | . 1 . Unknown Exits Taken 1 | 1 . . Scrap Searched . | . . . Spaces Dug . | . . . Terrain Destroyed . | . . . Melee . | . . . Projectile . | . . . AOE . | . . . Terrain Rammed . | . . . Walls Destroyed . | . . . Machines Disabled . | . . . Actions | -11 -10 -9 --------- Run | Scr Mat Mat Total 382 | . 128 254 Wait 14 | . . 14 Move 299 | . 113 186 Hop . | . . . Pick Up 10 | . 2 8 Fast Attach 1 | . 1 . Attach 9 | . . 9 Detach . | . . . Swap 3 | . . 3 Drop 1 | . . 1 Fire 32 | . 12 20 Melee 13 | . . 13 Ram . | . . . Kick . | . . . Crush . | . . . Escape Stasis . | . . . Rewire . | . . . Trap . | . . . Miscellaneous . | . . . Route ------- -11/Scrapyard -10/Materials (discovered 3 exits: *Mat x3) -9/Materials History --------- Turn | Location | Event 1 | -11/Scrapyard | Discovered new exit (range 0) 1 | -11/Scrapyard | Entered Materials 40 | -10/Materials | Identified exit to Materials 52 | -10/Materials | Discovered new exit (range 16) 175 | -10/Materials | Entered another Materials area 175 | -9/Materials | Evolved 2 slots: Utility x1, Weapon x1 379 | -9/Materials | Core integrity fell below 50% 433 | -9/Materials | Lost 9 parts (2p2n5w) 525 | -9/Materials | Core integrity fell below 20% 541 | -9/Materials | Destroyed by Minor Abomination with Small Laser Last Messages --------------- Lesser Abomination suffers critical hit (Smash). Destroyed Hpw. Tractor Beam. Lesser Abomination system corrupted by crushing effect. ALERT: Dispatching additional forces to engage threats. Lesser Abomination destroyed. Acquired Imp. Heat Sink. Parts repaired by Paradox Anomaly. Acquired Weight Redist. System. Acquired Com. Wheel. Acquired Lgt. Ion Engine. Acquired 47 matter. Frozen by Ice Anomaly. Hungry Anomaly eats Lgt. Armor Plating. Acquired Lgt. Armor Plating. 8 MXY ,P DYIWVC:>/TL6FYA8 4EQ02 Forced to warp away. Sneak attack on EM Anomaly. EM Anomaly knocked back. Lesser Abomination forced to warp away. Frozen by Ice Anomaly. Map ----- +----------------------------------------------------+ | ?????????????????????????????????????????????????? | | ?????????????????????????????????????????????????? | | ?????????????????????????????????????????????????? | | ?????????????????????????????????????????????????? | | ?????????????????????????????????????????????????? | | ?????????????????????????????????????????????????? | | ?????????????????????????????????? ??????????????? | | ???????????????????????????????### ??????????????? | | ???????????????????????????? #?????????????? | | ?????????????????????????? #????##+#????? | | ???????????????????????? #???? ??? | | ????????????????????????? #??? ??? | | ?????????????????????????? #### % ?? | | ??????????????????????????# ?? | | ??????????????????????????# ? | | ??????????????????????????# ? | | ??????????????????????????# ? | | ??????????????????????????# ??? | | ??????????????????????????#% #????? | | ??????????????????????????# % #????? | | ??????????????????????????/ #????? | | ??????????????????????????# #????? | | ????????????????########### ####?????? | | ????????????????# # #????????? | | ????????????????# # #######+###????????? | | ????????????????# %@# + #????????? | | ????????????????# A # #????????? | | ????????????????# #A # % #????????? | | ????????????????# # #? % #????????? | | ????????????????#! # #? #????????? | | ????????????????# %# %#?? #????????? | | ????????????????########### #?? % #????????? | | ??????????????????????????# #??? % #????????? | | ??????????????????????????# #???####%##????????? | | ??????????????????????????# #???????##?????????? | | ??????????????????????????# #????##########????? | | ??????????????????????????# #????# """ [ #???? | | ??????????????????????????# #????# "R" #???? | | ??????????????????????????# #????# " " #???? | | ??????????????????????????# #????# """ #???? | | ??????????????????????????# #????# = """ ##### | | ??????????????????????????# #????# """ # # | | ??????????????????????????# #????# # # | | ????????????????????????### #????# # # | | ????????????????????????# ##########+###### ## | | ????????????????????????# | | ????????????????????????# | | ????????????????????????# | | ????????????????????????# ##########+######+## | | ??????????????????????#####+#####?????? ??# | +----------------------------------------------------+ Best States ------------- Heat Dissipation 28 Energy Generation 10 Energy Capacity 125 Matter Stores 350 Matter Capacity 350 Sight Range 16 Terrain Scan Density 10 Evasion (%) 55 Targeting Accuracy 5 Recoil Reduction 2 Item Schematics ----------------- None Robot Schematics ------------------ None Fabricated ------------ Nothing Alien Tech Used ----------------- None Achievements -------------- None Challenges ------------ None Game ------ Seed TrackerBurstBoosters Manual? 0 Play Time 00:11:03 Cumulative 74.9 hours Start 2022.03.22 @ 06:41:24 End 2022.03.22 @ 06:50:10 Sessions 1 Manual Loads 0 Difficulty Rogue Special Mode Halloween2019/Abominations Game No. 56 Rogue 56 Adventurer 0 Explorer 0 Win Type - Total 0 Types 0/0/0/0/0/0/0/0/0 Lore% 44 Gallery% 54 Achievement% 39 Wizard Run 0 Options --------- ASCII 0 Keyboard 0 Movement Arrows Keybinds 1 Fullscreen 1 Font 18/TerminusBold Map View 76x50 Tactical HUD 0 Map Filters NONE Filters NONE Steam 1 RUN: 037b2d69-79c3-4d2e-a936-884590fb1e33